Cogmind - Beta 13 @@@ ROGUE MODE // 2024.04.21 @ 22:22:27 Player: f_ Result: Destroyed by P-60 Hacker with Shock Rifle Performance ------------- Evolutions (0) 0 Regions Visited (4) 800 Robots Destroyed (16) 80 Value Destroyed (392) 392 Prototype IDs (3) 60 Alien Tech Used (0) 0 Bonus (65) 65 TOTAL SCORE: 1397 Bonus ------- Follower Combat Kills 65 Cogmind --------- Core Integrity 0/250 Matter 230/300 Energy 97/100 System Corruption 4% Temperature Cool (0) Movement Core (100) Ox1 Location -8/Recycling Parts ------- > --- POWER (1) -------- (None) > --- PROPULSION (2) --- (None) > --- UTILITY (2) ------ Armored Scrap Engine > --- WEAPON (2) ------- Battle Cannon > --- INVENTORY (5) ---- Large Storage Unit Sensor Array Hammer Peak State ------------ > --- POWER ------------ (None) > --- PROPULSION ------- Flight Unit Flight Unit > --- UTILITY ---------- Armored Scrap Engine > --- WEAPON ----------- Electro Pulse Construct/C > --- INVENTORY -------- Large Storage Unit Sensor Array Battle Cannon Grenade Launcher Hammer [Rating: 23] Favorites ----------- Power Light Ion Engine Engine Light Ion Engine Propulsion Flight Unit Flight Unit Flight Unit Utility Sensor Array Device Sensor Array Weapon Hammer Energy Cannon Constructs Ballistic Cannon Battle Cannon Launcher Grenade Launcher Impact Weapon Hammer Build | -11 -10 -10 -10 -8 ------- Run | Yrd Mat Min Sub Rec Slots Evolved . | . . . . . Power . | . . . . . Propulsion . | . . . . . Utility . | . . . . . Weapon . | . . . . . Parts Attached 9 | . 3 . 3 3 Power 1 | . . . 1 . Engine 1 | . . . 1 . Core . | . . . . . Reactor . | . . . . . Propulsion 2 | . . . 2 . Treads . | . . . . . Leg . | . . . . . Wheel . | . . . . . Hover . | . . . . . Flight 2 | . . . 2 . Utility 2 | . 1 . . 1 Device 2 | . 1 . . 1 Storage . | . . . . . Processor . | . . . . . Hackware . | . . . . . Protection . | . . . . . Artifact . | . . . . . Weapon 4 | . 2 . . 2 Energy Gun . | . . . . . Energy Cannon . | . . . . . Ballistic Gun . | . . . . . Ballistic Cannon 1 | . . . . 1 Launcher 2 | . 1 . . 1 Special Weapon . | . . . . . Impact Weapon 1 | . 1 . . . Slashing Weapon . | . . . . . Piercing Weapon . | . . . . . Special Melee Weapon . | . . . . . Unidentified Prototypes . | . . . . . Parts Lost 5 | . . . 1 4 Power 1 | . . . 1 . Propulsion 2 | . . . . 2 Utility . | . . . . . Weapon 2 | . . . . 2 Highest Loss Streak 4 | . . . 1 4 To Critical Strikes . | . . . . . Average Slot Usage (%) 36 | . 16 28 48 52 Engine 1 | . . . 4 . Flight 9 | . . . 15 24 Device 12 | . 7 14 14 14 Energy Cannon 1 | . . . . 7 Impact Weapon 10 | . 4 14 14 5 Naked Turns 128 | . 128 . . . Heaviest Build 6 | . 4 3 6 4 Greatest Support 8 | 3 3 3 8 8 Greatest Overweight (x) 1 | . 1 . 1 1 Average Overweight (x) . | . . . . . Largest Inventory Capacity 5 | 5 5 5 5 5 Average Capacity 5 | 5 5 5 5 5 Most Carried 5 | . 4 5 5 5 Average Carried 3 | . 1 4 4 4 Final Capacity 5 | 5 5 5 5 5 Final Carried 4 | . 4 4 4 3 Scrap Engine Consumption 7 | . . . . 7 Constructs Created 1 | . . . . 1 Class Distribution -------------------- 53% | Mutant 37% | Commander-Mutant 9% | Construct Dominant Class ---------------- Mutant | -10/Materials Commander-Mutant | -10/Mines Mutant | -10/Subcaves Construct | -8/Recycling Resources | -11 -10 -10 -10 -8 ----------- Run | Yrd Mat Min Sub Rec Matter Collected 380 | 48 213 13 76 30 Remotely . | . . . . . Salvage Created 372 | . 155 . 32 185 Parts 19 | . 10 . . 9 Haulers Intercepted 2 | . 2 . . . Recyclers Shooed 1 | . 1 . . . Parts Field Recycled . | . . . . . Retrieved Matter . | . . . . . Parts Self-Destructed 12 | . . . 12 . Prevented . | . . . . . Kills | -11 -10 -10 -10 -8 ------- Run | Yrd Mat Min Sub Rec Combat Hostiles Destroyed 8 | . 4 . . 4 Cannons 2 | . . . . 2 AOE 6 | . 4 . . 2 Classes Destroyed 8 | . 5 . 1 2 Builder 2 | . 1 . . 1 Hauler 2 | . 2 . . . Turret 2 | . . . 2 . Watcher 2 | . 2 . . . Swarmer 3 | . 3 . . . Grunt 2 | . 1 . . 1 Sentry 1 | . . . . 1 Programmer 2 | . . . . 2 Best Kill Streak 8 | . 8 . 2 5 Combat Bots Only 4 | . 4 . . 4 Max Kills in Single Turn 3 | . 2 . 1 3 Gunslinging . | . . . . . Exploded 2 | . 1 . . 2 Melee . | . . . . . Uniques/NPCs Destroyed . | . . . . . Combat | -11 -10 -10 -10 -8 -------- Run | Yrd Mat Min Sub Rec Hostile Shots Fired 108 | . 12 . 36 60 Missed 45 | . 1 . 21 23 Damage Taken 830 | . 93 . 152 585 Core 257 | . 25 . 70 162 Absorbed by Shields . | . . . . . Core Remaining (%) 100 | 100 . . . . Volleys Fired 30 | . 9 . . 21 Largest 1 | . 1 . . 1 Hottest 45 | . 30 . . 45 Shots Fired 30 | . 9 . . 21 Gun . | . . . . . Cannon 20 | . . . . 20 Launcher 10 | . 9 . . 1 Special . | . . . . . Kinetic 9 | . . . . 9 Thermal . | . . . . . Explosive 10 | . 9 . . 1 Electromagnetic 11 | . . . . 11 Robot Hit Streak 16 | . 1 . . 16 Robot Miss Streak 1 | . 1 . . 1 Penetration Max . | . . . . . Secondary Targets . | . . . . . Shots Hit Robots 30 | . 5 . 6 19 Core Hits 29 | . 11 . 1 17 Critical Kills 1 | . . . 1 . Critical Parts Destroyed . | . . . . . Critical Strikes 3 | . . . 1 2 Blast 2 | . . . . 2 Smash 1 | . . . 1 . Melee Attacks 13 | . 4 . 9 . Impact 13 | . 4 . 9 . Slashing . | . . . . . Piercing . | . . . . . Sneak Attacks 1 | . 1 . . . Combat Hostiles . | . . . . . Follow-up Attacks . | . . . . . Damage Inflicted 1411 | . 605 . 163 643 Guns . | . . . . . Cannons 404 | . . . . 404 Explosions 715 | . 476 . . 239 Melee 289 | . 126 . 163 . Ramming 3 | . 3 . . . Kinetic 231 | . . . . 231 Thermal 45 | . 45 . . . Explosive 670 | . 431 . . 239 Electromagnetic 173 | . . . . 173 Impact 289 | . 126 . 163 . Slashing . | . . . . . Piercing . | . . . . . Highest Corruption 4 | . . . . 4 Average Corruption 2 | . . . . 2 Corruption Purged . | . . . . . Corruption Blocked . | . . . . . Effects 1 | . . . . 1 Message Errors 1 | . . . . 1 Overload Shots . | . . . . . Overflow Damage 160 | . 82 . 31 47 Projectiles 45 | . . . . 45 Explosions 72 | . 70 . . 2 Melee 43 | . 12 . 31 . Knockbacks 1 | . . . . 1 Impact . | . . . . . Kinetic 1 | . . . . 1 Secondary . | . . . . . Self-Inflicted Damage 31 | . 1 . . 30 Shots 1 | . . . . 1 Rammed 1 | . 1 . . . Targets Rammed 1 | . 1 . . . Kicked . | . . . . . Crushed . | . . . . . Highest Temperature 14 | . 5 . . 14 Average Temperature 8 | . 5 . . 8 Received Heat Transfer 177 | . 6 . 90 81 Siege Activations . | . . . . . Robots Corrupted . | . . . . . Combat Hostiles . | . . . . . Parts Fried . | . . . . . Impact Corruptions 3 | . 1 . 2 . Robots Melted . | . . . . . Combat Hostiles . | . . . . . Parts Melted . | . . . . . Heat Transferred 50 | . 50 . . . Parts Sabotaged . | . . . . . Parts Stolen . | . . . . . Parts Stripped . | . . . . . Power Chain Reactions . | . . . . . Alert | -11 -10 -10 -10 -8 ------- Run | Yrd Mat Min Sub Rec Peak Influence 317 | . 317 123 . 205 Initial 163 | . . 123 . 163 Average 152 | . 179 123 . 169 Maximum Alert Level 1 | . 1 . . 1 Low Security (%) 82 | 100 46 100 . 97 Level 1 17 | . 53 . . 2 Level 2 . | . . . . . Level 3 . | . . . . . Level 4 . | . . . . . Level 5 . | . . . . . High Security . | . . . . . Max Security . | . . . . . Squads Dispatched 2 | . 2 . . . Investigation 1 | . 1 . . . Extermination . | . . . . . Reinforcement 1 | . 1 . . . Assault . | . . . . . Garrison . | . . . . . Intercept . | . . . . . Searches Triggered . | . . . . . Construction Impeded . | . . . . . Haulers Reinforced . | . . . . . Active Scanning Responses . | . . . . . Cargo Convoy Interrupts . | . . . . . Stealth | -11 -10 -10 -10 -8 --------- Run | Yrd Mat Min Sub Rec Distress Signals 1 | . 1 . . . Communications Jammed . | . . . . . Distress Signals . | . . . . . Times Spotted 52 | . 15 . 30 7 Peak Tracking Total 5 | . 4 . 3 5 Tactical Retreats 4 | . 1 . 2 1 Traps | -11 -10 -10 -10 -8 ------- Run | Yrd Mat Min Sub Rec Traps Triggered 1 | . 1 . . . Indirectly . | . . . . . Trap Hack Attempts . | . . . . . Triggered . | . . . . . Disarmed . | . . . . . Reprogrammed . | . . . . . Reused . | . . . . . Traps Extracted . | . . . . . Installed . | . . . . . Triggered . | . . . . . Machines | -11 -10 -10 -10 -8 ---------- Run | Yrd Mat Min Sub Rec Machines Disabled 1 | . 1 . . . Max in Single Turn 1 | . 1 . . . Machines Repaired . | . . . . . Machines Dismantled . | . . . . . Machines Sabotaged . | . . . . . Overloaded Fab Kills . | . . . . . Hacking | -11 -10 -10 -10 -8 --------- Run | Yrd Mat Min Sub Rec Machines Accessed 12 | . 5 . . 7 Terminals 8 | . 5 . . 3 Fabricators . | . . . . . Repair Stations . | . . . . . Recycling Units 4 | . . . . 4 Scanalyzers . | . . . . . Garrison Access . | . . . . . Total Hacks 32 | . 13 . . 19 Successful 15 | . 8 . . 7 Failed 17 | . 5 . . 12 Catastrophic 1 | . 1 . . . Database Lockouts . | . . . . . Manual 20 | . 12 . . 8 Terminals 20 | . 13 . . 7 Fabricators . | . . . . . Repair Stations . | . . . . . Recycling Units 12 | . . . . 12 Scanalyzers . | . . . . . Garrison Access . | . . . . . Terminal Hacks 9 | . 6 . . 3 Robot Analysis 3 | . 2 . . 1 Prototype ID Bank 1 | . 1 . . . Terminal Index 1 | . 1 . . . Alert Level 2 | . 1 . . 1 Patrol Status 1 | . . . . 1 Registered Components 1 | . 1 . . . Fabricator Hacks . | . . . . . Repair Station Hacks . | . . . . . Recycling Unit Hacks 2 | . . . . 2 Retrieve Components 2 | . . . . 2 Scanalyzer . | . . . . . Garrison Access Hacks . | . . . . . Unauthorized Hacks 4 | . 2 . . 2 Terminals 3 | . 2 . . 1 Assimilate 1 | . 1 . . . Botnet 2 | . 1 . . 1 Fabricators . | . . . . . Repair Stations . | . . . . . Recycling Units 1 | . . . . 1 Recyclers 1 | . . . . 1 Scanalyzers . | . . . . . Garrison Access . | . . . . . Data Cores Recovered . | . . . . . Used . | . . . . . Hacking Detections 11 | . 5 . . 6 Full Trace Events 3 | . 1 . . 2 Feedback Events . | . . . . . Feedback Blocked . | . . . . . Robot Schematics Acquired . | . . . . . Robots Built . | . . . . . Authchips . | . . . . . Time . | . . . . . Total Robot Build Rating . | . . . . . Part Schematics Acquired . | . . . . . Parts Built . | . . . . . Authchips . | . . . . . Time . | . . . . . Total Part Build Rating . | . . . . . Parts Repaired . | . . . . . Time . | . . . . . Parts Recycled . | . . . . . Recycled Matter . | . . . . . Retrieved Matter . | . . . . . Retrieved Components 3 | . . . . 3 Parts Scanalyzed . | . . . . . Part Schematics Acquired . | . . . . . Parts Damaged . | . . . . . Bothacking | -11 -10 -10 -10 -8 ------------ Run | Yrd Mat Min Sub Rec Used RIF Installer . | . . . . . Robots Hacked . | . . . . . Non-combat . | . . . . . Combat . | . . . . . Robot Hacks Applied . | . . . . . Relay Couplers Released . | . . . . . Fabnet Peak Effective % . | . . . . . Robots Rewired 2 | . . . . 2 Allies Hacked . | . . . . . Hacks Repelled . | . . . . . Allies | -11 -10 -10 -10 -8 -------- Run | Yrd Mat Min Sub Rec Total Allies 6 | . 1 3 . 2 Largest Group 4 | . 1 4 4 2 Highest-Rated Group 50 | . 10 50 50 32 Highest-Rated Ally 16 | . 10 16 16 16 Total Orders . | . . . . . Ally Attacks 37 | . . . 31 6 Total Damage 441 | . . . 357 84 Kills 6 | . . . 6 . Allies Corrupted . | . . . . . Allies Melted . | . . . . . Intel | -11 -10 -10 -10 -8 ------- Run | Yrd Mat Min Sub Rec Robot Analysis Total 3 | . 2 . . 1 Derelict Logs Recovered . | . . . . . Drone Launches . | . . . . . Drone Recoveries . | . . . . . Exploration | -11 -10 -10 -10 -8 ------------- Run | Yrd Mat Min Sub Rec Turns Passed 1421 | 10 325 398 415 273 Spaces Moved 1662 | 18 460 108 668 408 Core 893 | 18 460 108 300 7 Treads . | . . . . . Legs . | . . . . . Wheels . | . . . . . Hover . | . . . . . Flight 769 | . . . 368 401 Fastest Speed 37 | 50 50 50 37 37 Average Speed 49 | 50 56 50 51 38 Slowest Speed 100 | 50 100 50 100 100 Overloaded Moves . | . . . . . Propulsion Burnouts . | . . . . . Robots Hopped 1 | . . . . 1 Cave-ins Triggered . | . . . . . Exploration Rate (%) 40 | 2 67 36 33 62 Regions Visited 4 Branch Regions 3 Pre-discovered Areas . | . . . . . Known Exits Taken . | . . . . . Unknown Exits Taken 4 | 1 1 1 1 . Scrap Searched 2 | . . 2 . . Spaces Dug 1 | . . . 1 . Terrain Destroyed 38 | . 33 . 1 4 Melee 1 | . . . 1 . Projectile . | . . . . . AOE 37 | . 33 . . 4 Terrain Rammed . | . . . . . Walls Destroyed . | . . . . . Machines Disabled . | . . . . . Actions | -11 -10 -10 -10 -8 --------- Run | Yrd Mat Min Sub Rec Total 2202 | 18 507 451 720 506 Wait 443 | 1 26 342 40 34 Move 1656 | 17 459 107 667 406 Hop 1 | . . . . 1 Pick Up 7 | . 5 1 1 . Fast Attach 4 | . 1 . 2 1 Attach 4 | . 1 . 1 2 Detach 2 | . . . . 2 Swap 1 | . 1 . . . Drop 2 | . . 1 . 1 Fire 30 | . 9 . . 21 Melee 13 | . 4 . 9 . Ram 1 | . 1 . . . Kick . | . . . . . Crush . | . . . . . Escape Stasis . | . . . . . Rewire 38 | . . . . 38 Trap . | . . . . . Miscellaneous . | . . . . . Route ------- -11/Scrapyard -10/Materials (discovered 2 exits: [*Mat] / [*Min]) -10/Mines (discovered 2 exits: [*Mat] / [*Sub]) -10/Subcaves -8/Recycling History --------- Turn | Location | Event 2 | -11/Scrapyard | Met Revision 17 4 | -11/Scrapyard | Discovered new exit (range 15) 11 | -11/Scrapyard | Entered Materials 128 | -10/Materials | Discovered new exit (range 13) 138 | -10/Materials | Discovered new exit (range 15) 305 | -10/Materials | Build established: Mutant 336 | -10/Materials | Entered Mines 336 | -10/Mines | Accompanied by 1 ally 338 | -10/Mines | Assisted by bots powering up and referring to "LRC-V3" 358 | -10/Mines | Discovered new exit (range 6) 635 | -10/Mines | Build established: Commander-Mutant 701 | -10/Mines | Discovered new exit (range 5) 734 | -10/Mines | Entered Subcaves 734 | -10/Subcaves | Accompanied by 4 allies 975 | -10/Subcaves | Discovered new exit (range 13) 1149 | -10/Subcaves | Entered Recycling 1149 | -8/Recycling | Accompanied by 2 allies 1150 | -8/Recycling | Joined Warlord attack on 0b10 via Recycling 1153 | -8/Recycling | Found Scrap Engine 1175 | -8/Recycling | Build established: Mutant 1390 | -8/Recycling | Core integrity fell below 50% 1396 | -8/Recycling | P-60 Hacker assimilated allied Trooper 3a 1403 | -8/Recycling | Core integrity fell below 20% 1422 | -8/Recycling | Destroyed by P-60 Hacker with Shock Rifle Last Messages --------------- 01413_ U-05 Engineer lays Concrete. 01414_ T-07 Excavator destroyed. 01414_ U-05 Engineer lays Concrete. 01417_ R-06 Scavenger collects Gravmag System. 01417_ K-01 Serf destroyed. 01418_ R-06 Scavenger collects Gravmag System. 01418_ A-02 Transporter suffers critical hit (Blast). 01418_ Destroyed Weight Redist. System. 01418_ A-02 Transporter destroyed. 01418_ U-05 Engineer lays Concrete. 01418_ R-06 Scavenger collects Lgt. Treads. 01419_ KA>>HHWJLHSFL>Q5P2L&RTL#XXZYNFU#OX6%5 01419_ U-05 Engineer lays Concrete. 01420_ Destroyed Imp. Heat Sink. 01420_ Destroyed Shock Rifle. 01420_ U-05 Engineer lays Concrete. 01420_ Door malfunctions. 01420_ U-05 Engineer lays Concrete. 01422_ Destroyed Mic. Nuclear Core. 01422_ R-06 Scavenger collects Lgt. Ion Engine. Map ----- +----------------------------------------------------+ | ?????????????????????????????????????????????????? | | ?????????????????????????????????????????????????? | | ?????????????????????????????????????????????????? | | ?????????????????????????????????????????????????? | | ????????##########???????????????????????????????? | | ????? #???????????????????????????????? | | ???? +???????????????????????????????? | | ??? #???????????????????????????????? | | ??? #???????????????????????????????? | | ??? #???????????????????????????????? | | ## ##+#???+#???????????????????????? | | #??? #???????????????????????? | | #??? #???????????????????????? | | #?## ##??????????????????????? | | """"" ### #??????????????????????? | | """"" T #??#???????????????????? | | """""" #? #???????????????????? | | """" ##### #####???????????????? | | +???????????????? | | ######## ###?????????????????? | | #??????#/##+##+###?????????????????? | | #?????##r% %i %Y#?????????????????? | | ####### !ri r at#?????????????????? | | r% % p #?????????????????? | | ###############%% % #?????????????????? | | r#????????????# u@urs #?????????????????? | | #????????????#% rr %=gh #?????????????????? | | #????????????# t% #????????????????#/ | | #????????????##% i *[#??????????????#?# | | #?????????????#####/#####?????????????? ## | | #?????????????????? ?????????????????? | | ## #????????????? ?????????????????r | | +????????????? ?????????????????? | | ######## #?????????????+###?????????????????# | | #???????? ##??????????????????????????????????# | | #???????? #???????????????????????????????????# | | #???????? #???????????????????????????????????# | | #???????? ##??????????????????????????????????# | | +######??? #??????????????????????????????????# | | #### #???????????????????????????????????# | | + r#???????????????????????????????????# | | # ##???????????????????????????????????# | | # #????????????????????????????????????# | | # #????????????????????????????????????# | | / #??????????????????????????########### | | # #??????????????????????????# # | | # ###????????????????????????# #r | | # !!#????????????????????????# # | | # !!#????????????????????????# + | | # !#????????????????????????# # | +----------------------------------------------------+ Best States ------------- Heat Dissipation 25 Energy Generation 10 Energy Capacity 125 Matter Stores 300 Matter Capacity 300 Sight Range 16 Robot Scan Range 14 Terrain Scan Density 10 Evasion (%) 62 Item Schematics ----------------- None Robot Schematics ------------------ None Fabricated ------------ Nothing Alien Tech Used ----------------- None Achievements -------------- None Challenges ------------ None Game ------ Seed QuantumAntimatterNanosword Manual? 0 Play Time 00:25:39 Cumulative 204.2 hours Start 2024.04.21 @ 21:51:24 End 2024.04.21 @ 22:22:27 Sessions 1 Manual Loads 0 Difficulty Rogue Special Mode None Game No. 175 Rogue 167 Adventurer 0 Explorer 8 Win Type - Total 7 Types 4/0/1/2/0/0/0/0/0 Lore% 58 Gallery% 67 Achievement% 53 Wizard Run 0 Options --------- Layout 0 ASCII 0 Keyboard 0 Movement Mouse Keybinds 0 Fullscreen 2 Font 36/Terminus Map View 83x50 Zoom Use 0% Tactical HUD 1 Map Filters NONE Filters NONE Steam 1 RUN: 23a28b50-c034-44f7-9d49-4a6f021288ca